bitfinex-derivatives/quotes_BNBF0:USTF0_20250807
["timestamp","ask_amount","ask_price","bid_price","bid_amount"]
[1754610151306,0.84270196,785.99,785.73,0.83]
[1754610151510,0.84270196,785.98,785.73,0.83]
[1754610151808,0.84270196,785.97,785.73,0.83]
[1754610152009,0.22139235,786.23,785.73,0.83]
[1754610152010,0.84270196,785.96,785.74,0.744]
[1754610152208,0.84270196,785.95,785.74,0.744]
[1754610152507,0.84270196,785.94,785.74,0.744]
[1754610152708,0.84270196,785.93,785.74,0.744]
[1754610153008,0.84270196,785.92,785.74,0.744]
[1754610153209,0.84270196,785.91,785.74,0.744]
[1754610153406,0.84270196,785.9,785.74,0.744]
[1754610153604,0.84270196,785.89,785.74,0.744]
[1754610153804,0.22139235,786.23,785.74,0.744]
[1754610154002,0.84259211,786.22,785.74,0.744]
[1754610154203,0.84259211,786.21,785.74,0.744]
[1754610154408,0.84259211,786.2,785.74,0.744]
[1754610154609,0.85728014,786.09,785.74,0.744]
[1754610154809,0.84259211,786.08,785.74,0.744]
[1754610155012,0.84259211,786.07,785.74,0.744]
[1754610155205,0.84259211,786.06,785.74,0.744]
[1754610155407,0.84259211,786.05,785.74,0.744]
[1754610155711,0.84259211,786.04,785.74,0.744]
[1754610156013,0.84259211,786.03,785.74,0.744]
[1754610156314,0.84259211,786.02,785.74,0.744]
[1754610156609,0.84259211,786.01,785.74,0.744]
[1754610156813,0.84259211,786.0,785.75,0.875]
[1754610157012,0.84259211,785.99,785.75,0.875]
[1754610157215,0.84259211,785.98,785.75,0.875]
[1754610157413,0.84259211,785.97,785.75,0.875]
[1754610157611,0.84259211,785.96,785.75,0.875]
[1754610157810,0.84259211,785.95,785.75,0.875]
[1754610158013,0.84259211,785.94,785.75,0.875]
[1754610158210,0.84259211,785.93,785.75,0.875]
[1754610158413,0.84259211,785.92,785.75,0.875]
[1754610158611,0.84259211,785.91,785.75,0.875]
[1754610158811,0.84259211,785.9,785.75,0.875]
[1754610159011,0.84259211,785.89,785.75,0.875]
[1754610159216,0.84259211,785.88,785.75,0.875]
[1754610159415,0.84259211,785.87,785.75,0.875]
[1754610159715,0.84259211,785.86,785.75,0.875]
[1754610160015,0.84259211,785.85,785.75,0.875]
[1754610160213,0.84259211,785.84,785.75,0.875]
[1754610160412,0.84259211,785.83,785.75,0.875]
[1754610160616,0.84259211,785.82,785.75,0.875]
[1754610160916,0.85728014,786.11,785.75,0.875]
[1754610161218,0.84245535,786.1,785.75,0.875]
[1754610161513,0.84245535,786.09,785.75,0.875]
[1754610161816,0.84245535,786.08,785.75,0.875]
[1754610162014,0.84245535,786.07,785.75,0.875]
[1754610162314,0.84245535,786.06,785.75,0.875]
[1754610162517,0.84245535,786.05,785.75,0.875]
[1754610162719,0.84245535,786.04,785.75,0.875]
[1754610163014,0.84245535,786.03,785.75,0.875]
[1754610163218,0.84245535,786.02,785.75,0.875]
[1754610163411,0.84246248,786.01,785.75,0.875]
[1754610163716,0.84246248,786.0,785.75,0.875]
[1754610163914,0.84246248,785.99,785.75,0.875]
[1754610164118,0.84246248,785.98,785.75,0.875]
[1754610164318,0.84246248,785.97,785.75,0.875]
[1754610164519,0.84246248,785.96,785.75,0.875]
[1754610164719,0.84246248,785.95,785.75,0.875]
[1754610165020,0.84246248,785.94,785.75,0.875]
[1754610165217,0.84246248,785.93,785.75,0.875]
[1754610165414,0.84246248,785.92,785.75,0.875]
[1754610165615,0.84246248,785.91,785.75,0.875]
[1754610165920,0.84246248,785.9,785.75,0.875]
[1754610166116,0.84246248,785.89,785.75,0.875]
[1754610166317,0.84246248,785.88,785.75,0.875]
[1754610166520,0.84246248,785.87,785.75,0.875]
[1754610166820,0.84246248,785.86,785.75,0.875]
[1754610167016,0.84246248,785.85,785.75,0.875]
[1754610167218,0.84246248,785.84,785.75,0.875]
[1754610167416,0.84246248,785.83,785.75,0.875]
[1754610167618,0.84246248,785.82,785.75,0.875]
[1754610167817,0.84246248,785.81,785.75,0.875]
[1754610168016,0.84246248,785.8,785.75,0.875]
[1754610168214,0.84246248,785.79,785.75,0.875]
[1754610168417,0.85728014,786.04,785.75,0.875]
[1754610168721,0.84245244,786.03,785.75,0.875]
[1754610168916,0.84245244,786.02,785.75,0.875]
[1754610169115,0.84245244,786.01,785.75,0.875]
[1754610169314,0.84245244,786.0,785.75,0.875]
[1754610169518,0.84245244,785.99,785.75,0.875]
[1754610169715,0.84245244,785.98,785.75,0.875]
[1754610169919,0.84245244,785.97,785.75,0.875]
[1754610170121,0.84245244,785.96,785.75,0.875]
[1754610170420,0.84245244,785.95,785.75,0.875]
[1754610170616,0.84245244,785.94,785.75,0.875]
[1754610170818,0.84245244,785.93,785.75,0.875]
[1754610171120,0.84245244,785.92,785.75,0.875]
[1754610171317,0.84245244,785.91,785.75,0.875]
[1754610171620,0.84245244,785.9,785.75,0.875]
[1754610171917,0.84245244,785.89,785.75,0.875]
[1754610172117,0.84245244,785.88,785.75,0.875]
[1754610172321,0.84245244,785.87,785.75,0.875]
[1754610172519,0.84245244,785.86,785.75,0.875]
[1754610172718,0.84245244,785.85,785.75,0.875]
[1754610172918,0.84245244,785.84,785.75,0.875]
[1754610173119,0.84245244,785.83,785.75,0.875]
[1754610173419,0.84245244,785.82,785.75,0.875]
[1754610173623,0.84245244,785.81,785.75,0.875]
[1754610173819,0.84245244,785.8,785.75,0.875]
[1754610174019,0.84245244,785.79,785.75,0.875]
[1754610174219,0.84245244,785.78,785.75,0.875]
[1754610174424,0.85728014,786.04,785.75,0.875]
[1754610174720,0.8427277,786.03,785.75,0.875]
[1754610174924,0.8427277,786.02,785.75,0.875]
[1754610175124,0.8427277,786.01,785.75,0.875]
[1754610175325,0.8427277,786.0,785.75,0.875]
[1754610175624,0.8427277,785.99,785.75,0.875]
[1754610175823,0.8427277,785.98,785.75,0.875]
[1754610176024,0.8427277,785.97,785.75,0.875]
[1754610176223,0.8427277,785.96,785.75,0.875]
[1754610176423,0.8427277,785.95,785.75,0.875]
[1754610176725,0.8427277,785.94,785.75,0.875]
[1754610176924,0.8427277,785.93,785.75,0.875]
[1754610177222,0.8427277,785.92,785.75,0.875]
[1754610177425,0.8427277,785.91,785.75,0.875]
[1754610177622,0.8427277,785.9,785.75,0.875]
[1754610177822,0.8427277,785.89,785.75,0.875]
[1754610178021,0.8427277,785.88,785.75,0.875]
[1754610178227,0.8427277,785.87,785.75,0.875]
[1754610178420,0.8427277,785.86,785.75,0.875]
[1754610178621,0.8427277,785.85,785.75,0.875]
[1754610178824,0.8427277,785.84,785.75,0.875]
[1754610179020,0.8427277,785.83,785.75,0.875]
[1754610179222,0.8427277,785.82,785.75,0.875]
[1754610179425,0.8427277,785.81,785.75,0.875]
[1754610179626,0.8427277,785.8,785.75,0.875]
[1754610179928,0.85367769,786.08,785.75,0.875]
[1754610180121,0.84259401,786.07,785.75,0.875]
[1754610180327,0.84259401,786.06,785.75,0.875]
[1754610180524,0.84259401,786.05,785.75,0.875]
[1754610180723,0.84259401,786.04,785.75,0.875]
[1754610180928,0.84259401,786.03,785.75,0.875]
[1754610181129,0.84259401,786.02,785.75,0.875]
[1754610181330,0.84259401,786.01,785.75,0.875]
[1754610181531,0.84259401,786.0,785.75,0.875]
[1754610181832,0.84259401,785.99,785.75,0.875]
[1754610182028,0.84259401,785.98,785.75,0.875]
[1754610182226,0.84259401,785.97,785.75,0.875]
[1754610182426,0.84259401,785.96,785.75,0.875]
[1754610182729,0.84259401,785.95,785.75,0.875]
[1754610182930,0.84259401,785.94,785.75,0.875]
[1754610183132,0.85356154,786.15,785.75,0.875]
[1754610183133,0.84259401,785.93,785.75,0.875]
[1754610183335,0.84259401,785.92,785.75,0.875]
[1754610183534,0.84259401,785.91,785.75,0.875]
[1754610183728,0.84259401,785.9,785.75,0.875]
[1754610183933,0.22139235,786.23,785.75,0.875]
[1754610184235,0.84282464,786.22,785.76,0.734]
[1754610184432,0.84282464,786.21,785.76,0.734]
[1754610184632,0.84282464,786.2,785.76,0.734]
[1754610184832,0.84282464,786.19,785.76,0.734]
[1754610185030,0.84282464,786.18,785.76,0.734]
[1754610185335,0.84282464,786.17,785.76,0.734]
[1754610185534,0.84282464,786.16,785.76,0.734]
[1754610185735,0.84282464,786.15,785.76,0.734]
[1754610185935,0.84282464,786.14,785.76,0.734]
[1754610186130,0.84282464,786.13,785.76,0.734]
[1754610186333,0.84282464,786.12,785.76,0.734]
[1754610186631,0.84282464,786.11,785.76,0.734]
[1754610186835,0.84282464,786.1,785.76,0.734]
[1754610187036,0.84282464,786.09,785.76,0.734]
[1754610187230,0.84282464,786.08,785.76,0.734]
[1754610187431,0.84282464,786.07,785.76,0.734]
[1754610187628,0.84282464,786.06,785.76,0.734]
[1754610187834,0.84282464,786.05,785.76,0.734]
[1754610188034,0.84282464,786.04,785.76,0.734]
[1754610188236,0.84282464,786.03,785.76,0.734]
[1754610188432,0.84282464,786.02,785.76,0.734]
[1754610188632,0.84282464,786.01,785.76,0.734]
[1754610188835,0.84282464,786.0,785.76,0.734]
[1754610189136,0.84282464,785.99,785.76,0.734]
[1754610189339,0.84282464,785.98,785.76,1.59]
[1754610189537,0.84282464,785.97,785.76,1.59]
[1754610189733,0.84282464,785.96,785.76,1.59]
[1754610189937,0.84282464,785.95,785.76,1.59]
[1754610190236,1.07495389,786.23,785.76,1.59]
[1754610190237,0.84282464,785.94,785.76,1.59]
[1754610190433,0.22139235,786.23,785.76,1.59]
[1754610190637,0.84274865,786.22,785.76,1.59]
[1754610190836,0.84274865,786.21,785.76,1.59]
[1754610191036,0.84274865,786.2,785.76,1.59]
[1754610191237,0.84274865,786.19,785.76,1.59]
[1754610191433,0.84274865,786.18,785.76,1.59]
[1754610191637,0.84274865,786.17,785.76,1.59]
[1754610191937,0.84274865,786.16,785.76,1.59]
[1754610192135,0.84274865,786.15,785.76,1.59]
[1754610192438,0.84274865,786.14,785.76,1.59]
[1754610192637,0.84274865,786.13,785.76,1.59]
[1754610192838,0.84274865,786.12,785.76,1.59]
[1754610193036,0.84274865,786.11,785.76,1.59]
[1754610193335,0.84274865,786.1,785.76,1.59]
[1754610193540,0.84274865,786.09,785.76,1.59]
[1754610193740,0.22139235,786.23,785.76,1.59]
[1754610193741,0.84274865,786.08,785.76,1.59]
[1754610194036,0.84274865,786.07,785.76,1.59]
[1754610194240,0.22139235,786.23,785.76,1.59]
[1754610194437,0.84249046,786.22,785.76,1.59]
[1754610194637,0.84249046,786.21,785.76,1.59]
[1754610194940,0.84249046,786.2,785.76,1.59]
[1754610195136,0.84249046,786.19,785.76,1.59]
[1754610195440,1.7048236,786.73,785.76,1.59]
[1754610195441,0.84249046,786.18,785.76,1.59]
[1754610195636,0.84249046,786.17,785.76,1.59]
[1754610195839,0.84249046,786.16,785.76,1.59]
[1754610196039,0.84249046,786.15,785.76,1.59]
[1754610196239,0.84249046,786.14,785.76,1.59]
[1754610196439,0.84249046,786.13,785.76,1.59]
[1754610196644,0.84249046,786.12,785.76,1.59]
[1754610196844,0.84249046,786.11,785.76,1.59]
[1754610197044,0.221367,786.37,785.76,1.59]
[1754610197245,0.84234575,786.36,785.76,1.59]
[1754610197444,0.84234575,786.35,785.76,1.59]
[1754610197744,0.84234575,786.34,785.76,1.59]
[1754610197943,0.84234575,786.33,785.76,1.59]
[1754610198140,0.84234575,786.32,785.76,1.59]
[1754610198345,0.84234575,786.31,785.76,1.59]
[1754610198543,0.84234575,786.3,785.76,1.59]
[1754610198744,0.84234575,786.29,785.76,1.59]
[1754610198943,0.84234575,786.28,785.76,1.59]
[1754610199147,0.84234575,786.27,785.76,1.59]
[1754610199345,0.84234575,786.26,785.76,1.59]
[1754610199544,0.84234575,786.25,785.76,1.59]
[1754610199744,0.84234575,786.24,785.76,1.59]
[1754610200042,0.84234575,786.23,785.76,1.59]
[1754610200244,0.221367,786.37,785.76,1.59]
[1754610200641,0.84194507,786.36,785.76,1.59]
[1754610200842,0.221367,786.37,785.76,1.59]
[1754610201042,0.84194507,786.36,785.76,1.59]
[1754610201447,0.221367,786.37,785.76,1.59]
[1754610201851,0.84193132,786.36,785.76,1.59]
[1754610202351,0.221367,786.37,785.76,1.59]
[1754610203156,0.84191747,786.36,785.76,1.59]
[1754610203456,0.84191747,786.35,785.76,0.856]
[1754610203654,0.84191747,786.34,785.76,0.856]
[1754610203859,0.84191747,786.33,785.76,0.856]
[1754610204055,0.84191747,786.32,785.76,0.856]
[1754610204259,0.84191747,786.31,785.76,0.856]
[1754610204459,0.221367,786.37,785.76,0.856]
[1754610204460,0.84191747,786.3,785.76,0.856]
[1754610204656,0.84191747,786.29,785.76,0.856]
[1754610204857,0.84191747,786.28,785.76,0.856]
[1754610205059,0.84191747,786.27,785.76,0.856]
[1754610205255,0.221367,786.37,785.76,0.856]
[1754610205256,0.84191747,786.26,785.76,0.856]
[1754610205557,0.84191747,786.25,785.76,0.856]
[1754610205859,0.84191747,786.24,785.76,0.856]
[1754610206056,0.84191747,786.23,785.77,1.051]
[1754610206260,0.84191747,786.22,785.77,1.051]
[1754610206460,0.84191747,786.21,785.77,1.051]
[1754610206656,0.84191747,786.2,785.77,1.051]
[1754610206861,0.84191747,786.19,785.77,1.051]
[1754610207059,0.84191747,786.18,785.77,1.051]
[1754610207358,0.84191747,786.17,785.77,1.051]
[1754610207657,0.221367,786.37,785.77,1.051]
[1754610207658,0.84191747,786.16,785.78,1.012]
[1754610207957,0.84191747,786.15,785.78,1.012]
[1754610208259,0.84191747,786.14,785.78,1.012]
[1754610208461,0.84191747,786.13,785.78,1.012]
[1754610208657,0.221367,786.37,785.78,1.012]
[1754610208955,0.84131071,786.36,785.78,1.012]
[1754610209156,0.84131071,786.35,785.78,1.012]
[1754610209357,0.84131071,786.34,785.78,1.012]
[1754610209562,0.84131071,786.33,785.78,1.012]
[1754610209861,0.84131071,786.32,785.78,1.012]
[1754610210161,0.84131071,786.31,785.78,1.012]
[1754610210356,0.84131071,786.3,785.78,1.012]
[1754610210558,0.84131071,786.29,785.78,1.012]
[1754610210758,0.84131071,786.28,785.78,1.012]
[1754610210957,0.84131071,786.27,785.78,1.012]
[1754610211262,0.84131071,786.26,785.78,1.012]
[1754610211462,0.2213311,786.57,785.78,1.012]
[1754610211761,0.8411351,786.56,785.78,1.012]
[1754610211961,0.8411351,786.55,785.78,1.012]
[1754610212161,0.8411351,786.54,785.78,1.012]
[1754610212360,0.8411351,786.53,785.78,1.012]
[1754610212558,0.8411351,786.52,785.78,1.012]
[1754610212758,0.8411351,786.51,785.78,1.012]
[1754610213062,0.8411351,786.5,785.78,1.012]
[1754610213259,0.8411351,786.49,785.78,1.012]
[1754610213457,0.8411351,786.48,785.78,1.012]
[1754610213662,0.8411351,786.47,785.78,1.012]
[1754610213860,0.8411351,786.46,785.78,1.012]
[1754610214163,0.8411351,786.45,785.78,1.012]
[1754610214364,0.8411351,786.44,785.78,1.012]
[1754610214567,0.8411351,786.43,785.78,1.012]
[1754610214762,0.8411351,786.42,785.78,1.012]
[1754610214966,0.8411351,786.41,785.78,1.012]
[1754610215263,0.8411351,786.4,785.78,1.012]
[1754610215462,0.8411351,786.39,785.78,1.012]
[1754610215665,0.8411351,786.38,785.78,1.012]
[1754610215862,0.8411351,786.37,785.78,1.012]
[1754610216066,0.2213311,786.57,785.78,1.012]
[1754610216363,0.84027649,786.56,785.78,1.012]
[1754610216563,0.84027649,786.55,785.78,1.012]
[1754610216764,0.84027649,786.54,785.78,1.012]
[1754610216961,0.2213311,786.57,785.78,1.012]
[1754610216962,0.84027649,786.53,785.78,1.012]
[1754610217265,0.84027649,786.52,785.78,1.012]
[1754610217566,0.84027649,786.51,785.78,1.012]
[1754610217762,0.2213311,786.57,785.78,1.012]
[1754610217763,0.84027649,786.5,785.78,1.012]
[1754610217966,0.84027649,786.49,785.78,1.012]
[1754610218166,0.84027649,786.48,785.78,1.012]
[1754610218368,0.84027649,786.47,785.78,1.012]
[1754610218662,0.84027649,786.46,785.78,1.012]
[1754610218964,0.84027649,786.45,785.78,1.012]
[1754610219162,0.84027649,786.44,785.78,1.012]
[1754610219367,0.84027649,786.43,785.78,1.012]
[1754610219562,0.84027649,786.42,785.79,1.061]
[1754610219766,0.84027649,786.41,785.79,1.061]
[1754610219963,0.84027649,786.4,785.79,1.061]
[1754610220163,0.84027649,786.39,785.79,1.061]
[1754610220467,0.84027649,786.38,785.79,1.061]
[1754610220767,0.84027649,786.37,785.79,1.061]
[1754610221065,0.84027649,786.36,785.79,1.061]
[1754610221274,0.84027649,786.35,785.79,1.061]
[1754610221564,0.2213311,786.57,785.79,1.061]
[1754610221565,0.84027649,786.34,785.79,1.061]
[1754610221869,0.84027649,786.33,785.79,1.061]
[1754610222165,0.84027649,786.32,785.8,0.692]
[1754610222368,0.84027649,786.31,785.8,0.692]
[1754610222569,0.84027649,786.3,785.8,0.692]
[1754610222866,0.84027649,786.29,785.8,0.692]
[1754610223068,0.84027649,786.28,785.8,0.692]
[1754610223266,0.84027649,786.27,785.8,0.692]
[1754610223466,0.84027649,786.26,785.8,0.692]
[1754610223666,0.84027649,786.25,785.8,0.692]
[1754610223964,0.84027649,786.24,785.8,0.692]
[1754610224164,0.84027649,786.23,785.8,0.692]
[1754610224368,0.84027649,786.22,785.8,0.692]
[1754610224670,0.84027649,786.21,785.8,0.692]
[1754610224965,0.84027649,786.2,785.8,0.692]
[1754610225169,0.84027649,786.19,785.8,0.692]
[1754610225368,0.84027649,786.18,785.8,0.692]
[1754610225569,0.84027649,786.17,785.8,0.692]
[1754610225768,0.84027649,786.16,785.8,0.692]
[1754610226065,0.84027649,786.15,785.8,0.692]
[1754610226270,0.84027649,786.14,785.8,0.692]
[1754610226464,0.84027649,786.13,785.8,0.692]
[1754610226668,0.84027649,786.12,785.8,0.692]
[1754610226864,0.84027649,786.11,785.8,0.692]
[1754610227064,0.84027649,786.1,785.8,0.692]
[1754610227265,0.84027649,786.09,785.8,0.692]
[1754610227563,0.84027649,786.08,785.8,0.692]
[1754610227864,0.84027649,786.07,785.8,0.692]
[1754610228068,0.84027649,786.06,785.8,0.692]
[1754610228267,0.84027649,786.05,785.8,0.692]
[1754610228466,0.84027649,786.04,785.8,0.692]
[1754610228666,0.84027649,786.03,785.8,0.692]
[1754610228866,0.84027649,786.02,785.8,0.692]
[1754610229170,0.84027649,786.01,785.8,0.692]
[1754610229369,0.84027649,786.0,785.8,0.692]
[1754610229669,0.84027649,785.99,785.8,0.692]
[1754610229873,0.84027649,785.98,785.8,0.692]
[1754610230073,0.84027649,785.97,785.8,0.692]
[1754610230272,0.85356154,786.37,785.8,0.692]
[1754610230470,0.83931791,786.36,785.8,0.692]
[1754610230772,0.83931791,786.35,785.8,0.692]
[1754610230970,0.85356154,786.33,785.8,0.692]
[1754610231170,0.83931791,786.32,785.8,0.692]
[1754610234472,1.69287945,786.32,785.8,0.692]
[1754610234775,0.83931791,786.31,785.8,0.692]
[1754610235275,0.85356154,786.23,785.8,0.692]
[1754610235474,0.83931791,786.22,785.8,0.692]
[1754610236777,0.83931791,786.21,785.8,0.692]
[1754610237073,0.83931791,786.2,785.8,0.692]
[1754610237278,0.83931791,786.19,785.79,1.061]
[1754610237572,0.83931791,786.18,785.79,1.061]
[1754610237776,0.83931791,786.17,785.79,1.061]
[1754610237975,0.83931791,786.16,785.79,1.061]
[1754610238176,0.83931791,786.15,785.79,1.061]
[1754610238376,0.83931791,786.14,785.79,1.061]
[1754610238579,0.83931791,786.13,785.79,1.061]
[1754610238777,0.83931791,786.12,785.8,0.958]
[1754610239076,0.83957408,786.11,785.8,0.958]
[1754610239381,0.83957408,786.1,785.8,0.958]
[1754610239679,0.83957408,786.09,785.8,0.958]
[1754610239879,0.83957408,786.08,785.8,0.958]
[1754610240081,0.83957408,786.07,785.81,0.903]
[1754610240279,0.83957408,786.06,785.81,0.903]
[1754610240580,0.83957408,786.05,785.81,0.903]
[1754610240880,0.83957408,786.04,785.81,0.903]
[1754610241182,0.83957408,786.03,785.81,0.903]
[1754610241378,0.83957408,786.02,785.81,0.903]
[1754610241576,0.83957408,786.01,785.81,0.903]
[1754610241779,0.83957408,786.0,785.81,0.903]
[1754610241974,0.83957408,785.99,785.81,0.903]
[1754610242178,0.83957408,785.98,785.81,0.903]
[1754610242385,0.85356154,786.26,785.81,0.903]
[1754610242386,0.83957408,785.97,785.81,0.903]
[1754610242579,0.83957408,785.96,785.81,0.903]
[1754610242776,0.83957408,785.95,785.81,0.903]
[1754610242981,0.85356154,786.25,785.81,0.903]
[1754610243277,0.83956369,786.24,785.81,0.903]
[1754610243477,0.83956369,786.23,785.81,0.903]
[1754610243683,0.83956369,786.22,785.81,0.903]
[1754610243882,0.83956369,786.21,785.81,0.903]
[1754610244082,0.83956369,786.2,785.81,0.903]
[1754610244279,0.83956369,786.19,785.81,0.903]
[1754610244478,0.83956369,786.18,785.81,0.903]
[1754610244682,0.83956369,786.17,785.81,0.903]
[1754610244884,0.83956369,786.16,785.81,0.903]
[1754610245179,0.83956369,786.15,785.81,0.903]
[1754610245380,0.83956369,786.14,785.81,0.903]
[1754610245679,0.83956369,786.13,785.81,0.903]
[1754610245880,0.83956369,786.12,785.81,0.903]
[1754610246079,0.83956369,786.11,785.81,0.903]
[1754610246279,0.83956369,786.1,785.81,0.903]
[1754610246484,0.83956369,786.09,785.81,0.903]
[1754610246681,0.83956369,786.08,785.81,0.903]
[1754610246885,0.83956369,786.07,785.81,0.903]
[1754610247181,0.83956369,786.06,785.81,0.903]
[1754610247386,0.85356154,786.38,785.81,0.903]
[1754610247586,0.2213311,786.57,785.81,0.903]
[1754610247587,0.83965175,786.37,785.81,0.903]
[1754610247786,0.83965212,786.36,785.81,0.903]
[1754610247980,0.83965212,786.35,785.81,0.903]
[1754610248285,0.85356154,786.43,785.81,0.903]
[1754610248286,0.83965212,786.34,785.81,0.903]
[1754610248481,0.83965212,786.33,785.81,0.903]
[1754610248782,0.83965212,786.32,785.81,0.903]
[1754610248981,0.83965212,786.31,785.81,0.903]
[1754610249182,0.83965212,786.3,785.81,0.903]
[1754610249384,0.83965212,786.29,785.81,0.903]
[1754610249680,0.83965212,786.28,785.81,0.903]
[1754610249879,0.83965212,786.27,785.81,0.903]
[1754610250085,0.83965212,786.26,785.81,0.903]
[1754610250280,0.83965212,786.25,785.81,0.903]
[1754610250487,0.83965212,786.24,785.81,0.903]
[1754610250787,0.83965212,786.23,785.81,0.903]
[1754610250987,0.83965212,786.22,785.81,0.903]
[1754610251183,0.83965212,786.21,785.81,0.903]
[1754610251384,0.83965212,786.2,785.81,0.903]
[1754610251587,0.83965212,786.19,785.81,0.903]
[1754610251785,0.83965212,786.18,785.81,0.903]
[1754610252084,0.83965212,786.17,785.81,0.903]
[1754610252286,0.83965212,786.16,785.81,0.903]
[1754610252485,0.83965212,786.15,785.81,0.903]
[1754610252688,0.83965212,786.14,785.81,0.903]
[1754610252989,0.83965212,786.13,785.81,0.903]
[1754610253192,0.83965212,786.12,785.81,0.903]
[1754610253489,0.83965212,786.11,785.81,0.903]
[1754610253785,0.83965212,786.1,785.81,0.903]
[1754610253987,0.85077222,786.42,785.81,0.903]
[1754610254187,0.83979148,786.41,785.81,0.903]
[1754610254386,0.83979148,786.4,785.81,0.903]
[1754610254590,0.83979148,786.39,785.81,0.903]
[1754610254785,0.83979365,786.38,785.81,0.903]
[1754610254991,0.83979365,786.37,785.81,0.903]
[1754610255191,0.83979365,786.36,785.81,0.903]
[1754610255391,0.83979365,786.35,785.81,0.903]
[1754610255691,0.83979365,786.34,785.81,0.903]
[1754610255889,0.83979365,786.33,785.81,0.903]
[1754610256088,0.83979365,786.32,785.81,0.903]
[1754610256293,0.83979365,786.31,785.81,0.903]
[1754610256589,0.83979365,786.3,785.81,0.903]
[1754610256792,0.83979365,786.29,785.81,0.903]
[1754610256992,0.83979365,786.28,785.81,0.903]
[1754610257293,0.83979365,786.27,785.81,0.903]
[1754610257493,0.83979365,786.26,785.81,0.903]
[1754610257790,0.83979365,786.25,785.81,0.903]
[1754610257996,0.83979365,786.24,785.81,0.903]
[1754610258189,0.83979365,786.23,785.81,0.903]
[1754610258395,0.83979365,786.22,785.81,0.903]
[1754610258595,0.83979365,786.21,785.81,0.903]
[1754610258791,0.83979365,786.2,785.81,0.903]
[1754610258996,0.83979365,786.19,785.81,0.903]
[1754610259194,0.83999236,786.18,785.81,0.903]
[1754610259392,0.83999236,786.17,785.81,0.903]
[1754610259604,0.83999236,786.16,785.81,0.903]
[1754610259797,0.83999236,786.15,785.81,0.903]
[1754610259994,0.83999236,786.14,785.81,0.903]
[1754610260197,0.83999236,786.13,785.81,0.903]
[1754610260398,0.83999236,786.12,785.81,0.903]
[1754610260598,0.83999236,786.11,785.81,0.903]
[1754610260898,0.85077222,786.38,785.81,0.903]
[1754610260899,0.83999236,786.1,785.81,0.903]
[1754610261096,0.83999236,786.09,785.81,0.903]
[1754610261297,0.83999236,786.08,785.81,0.903]
[1754610261495,0.83999236,786.07,785.81,0.903]
[1754610261698,0.83999236,786.06,785.81,0.903]
[1754610261900,0.83999236,786.05,785.81,0.903]
[1754610262199,0.84005339,786.04,785.81,0.903]
[1754610262494,0.85077222,786.38,785.81,0.903]
[1754610262698,0.84008518,786.37,785.81,0.903]
[1754610262899,0.84008518,786.36,785.81,0.903]
[1754610263196,0.84009196,786.35,785.81,0.903]
[1754610263594,0.85077222,786.37,785.81,0.903]
[1754610263795,0.84006504,786.36,785.81,0.903]
[1754610264196,0.84006504,786.35,785.81,0.903]
[1754610264399,0.85077222,786.37,785.81,0.903]
[1754610265499,0.85077222,786.38,785.81,0.903]
[1754610265800,0.84006624,786.37,785.81,0.903]
[1754610266000,0.84006624,786.36,785.82,1.114]
[1754610266197,0.84006624,786.35,785.82,1.114]
[1754610266401,0.84006624,786.34,785.82,1.114]
[1754610266595,0.84006624,786.33,785.82,1.114]